[Event "1st FIDE Olympiad DIS 2023"]
[Site "Belgrade"]
[Date "2023.01.31"]
[Round "2.10"]
[White "Mate, Balazs"]
[Black "Obodchuk, Andrei"]
[Result "0-1"]
[ECO "B53"]
[WhiteElo "2015"]
[BlackElo "2317"]
[Annotator "TA"]
[PlyCount "164"]
[EventDate "2023.01.30"]
[EventType "team-tourn"]
[EventCountry "SRB"]
[SourceTitle "playchess.com"]
[Source "ChessBase"]
[SourceQuality "1"]
[WhiteTeam "Hungary"]
[BlackTeam "FID"]
[WhiteTeamCountry "HUN"]
[TimeControl "40/5400+30:1800+30"]

{[%evp 9,164,2,12,16,44,37,38,45,39,32,42,25,47,30,35,21,35,17,32,6,10,10,19,17,18,0,22,22,22,11,94,-21,8,-19,-8,-13,0,-17,0,0,0,-22,-20,-19,-16,-38,-28,-37,-34,-37,-35,-34,-31,-42,-35,-43,-39,-50,-51,-60,-60,-60,0,0,0,-37,-30,-55,-17,-180,-181,-181,-183,-307,-307,-461,-461,-461,-252,-461,-461,-808,-461,-385,-307,-721,-260,-307,-307,-628,-760,-721,-658,-925,-307,-307,-307,-304,-173,-173,-173,-304,-309,-885,-892,-806,-765,-623,-726,-1127,-1115,-985,-535,-1022,-965,-12833,-12747,-6424,-5431,-4134,-3267,-4130,-2978,-29977,-29978,-29978,-29979,-29979,-29980,-29980,-29980,-29981,-29981,-29981,-29982,-29983,-29983,-29984,-29985,-29987,-29988,-29992,-29991,-29991,-29992,-29992,-29989,-29995,-29990,-29996,-29991,-29996,-29997,-29997,-29997,-29998,-29999]} 1. e4 {[%emt 0:00:06]} c5 {[%emt 0:00:08]} 2. Nf3 {[%emt 0:00:09]} d6 {[%emt 0:00:07]} 3. d4 {[%emt 0:00:13]} cxd4 {[%emt 0:00:07]} 4. Qxd4 {[%emt 0:00:18]} Nf6 {[%emt 0:00:18]} 5. Bg5 {[%emt 0:01:16]} Nc6 {[%emt 0:02:39]} 6. Bb5 {[%emt 0:01:45] B53: Sicilian: 2...d6: Lines with Qxd4.} Qa5+ {[%emt 0:02:58]} 7. Nc3 {[%emt 0:01:19]} Qxb5 {[%emt 0:00:16]} 8. Nxb5 {[%emt 0:05:36] White is slightly better.} Nxd4 {[%emt 0:00:08]} 9. Nfxd4 {[%emt 0:00:30]} Kd8 {[%emt 0:00:41]} 10. f3 {[%emt 0:02:11]} a6 {[%emt 0:03:29]} 11. Nc3 {[%emt 0:01:13]} e6 {[%emt 0:00:22]} 12. O-O-O {[%emt 0:01:28][%cal Oe4e5]} Kc7 {[%emt 0:00:22]} 13. Rhe1 {[%emt 0:06:39] [#]} (13. Rd3 {is interesting.} b5 14. Rhd1 Nd7 15. Nce2) 13... h6 $146 {[%emt 0:06:07]} ({Predecessor:} 13... Bd7 14. Kb1 h6 15. Bc1 b5 16. Re3 Be7 17. a3 Rhb8 18. Na2 Rc8 19. Red3 Kd8 {½-½ Campos Gambuti,L (2431)-Perez Garcia,R (2137) Lorca op 4th 2015 (2)}) 14. Be3 {[%emt 0:01:22]} Be7 {[%emt 0:01:22]} 15. Nb3 {[%emt 0:02:50]} Bd7 {[%emt 0:01:15]} 16. Rd2 {[%emt 0:03:30]} Bc6 {[%emt 0:08:52]} 17. Red1 {[%emt 0:01:30]} Rad8 {[%emt 0:02:36]} 18. Na5 {[%emt 0:03:48]} d5 {[%emt 0:04:01] Wards off Nc4} 19. exd5 {[%emt 0:06:45]} Bxd5 {[%emt 0:02:47] [#]} (19... Nxd5 $11 {remains equal.} 20. Nxd5+ Bxd5) 20. Nb3 {[%emt 0:05:21]} ({White should play} 20. Na4 $1 $16) 20... Bc6 {[%emt 0:05:48]} (20... Bxb3 {simplifies} 21. cxb3 Rxd2 22. Rxd2 Rd8) 21. a3 {[%emt 0:04:18]} Nd5 {[%emt 0:01:02]} 22. Nxd5+ {[%emt 0:01:03]} Bxd5 {[%emt 0:01:00]} 23. Rd3 {[%emt 0:01:06]} b6 {[%emt 0:07:00]} 24. a4 {[%emt 0:03:49]} Bc4 {[%emt 0:11:56]} 25. Rxd8 {[%emt 0:07:54]} Rxd8 {[%emt 0:00:13]} 26. Rxd8 {[%emt 0:00:49]} Bxd8 $11 {[%emt 0:00:08][%mdl 4096] Endgame KBB-KBN} 27. Nd2 {[%emt 0:00:07]} Bd5 {[%emt 0:01:05]} 28. c4 {[%emt 0:00:43]} Bc6 {[%emt 0:00:00]} 29. b3 {[%emt 0:00:14]} f5 {[%emt 0:00:21]} 30. Bd4 {[%emt 0:05:25]} g5 {[%emt 0:00:28][%cal Bg7g5,Bg5g4][%mdl 32]} 31. g3 {[%emt 0:00:34]} Kd7 {[%emt 0:01:38]} 32. Kc2 {[%emt 0:01:16]} Bc7 {[%emt 0:01:49]} 33. Bg7 {[%emt 0:00:53]} h5 {[%emt 0:00:11]} 34. Bf6 {[%emt 0:01:19]} g4 $1 {[%emt 0:00:26]} 35. f4 {[%emt 0:00:42]} b5 {[%emt 0:08:47]} (35... Bd6 $15) 36. axb5 {[%emt 0:04:04]} axb5 {[%emt 0:00:02]} 37. Bd4 {[%emt 0:01:01] [#]} h4 $1 {[%emt 0:07:16]} 38. Kc3 {[%emt 0:00:58]} (38. b4 hxg3) 38... h3 $1 {[%emt 0:01:32][%cal Oe6e5]} 39. Bg1 $2 {[%emt 0:12:30] This costs White the game.} (39. Kb4 $11 {and White stays safe.}) 39... e5 $19 {[%emt 0:00:32]} 40. fxe5 {[%emt 0:00:55]} Bxe5+ {[%emt 0:00:07]} 41. Kd3 {[%emt 0:35:17] [#]} (41. Kb4 $142) 41... b4 $1 {[%emt 0:32:14]} 42. Ke3 {[%emt 0:02:19]} (42. Nf1 {might work better.} Be4+ 43. Kd2) 42... Ke6 {[%emt 0:00:22]} 43. Kd3 {[%emt 0:02:44]} Bc7 {[%emt 0:01:50]} (43... Bg2 $142 44. Ke3 Bd6) 44. Kd4 $2 {[%emt 0:02:47]} (44. Nf1) 44... Bg2 {[%emt 0:02:40]} 45. Kd3 {[%emt 0:00:00]} (45. c5 $142 Be5+ 46. Ke3) 45... Be5 {[%emt 0:00:00] ...f4 would be deadly.} 46. Ke3 {[%emt 0:00:00]} Kf6 {[%emt 0:00:00] Hoping for ...Kg5.} 47. Kd3 $2 {[%emt 0:00:00]} (47. Bf2) 47... Bb7 $2 {[%emt 0:00:00]} (47... f4 48. gxf4 Bxf4 49. Ne4+ Ke5) 48. Ke3 {[%emt 0:00:00]} Kg5 {[%emt 0:00:00] And now ...Bg2 would win.} 49. Kd3 $2 {[%emt 0:00:00]} (49. Nf1 Be4 50. Kd2) 49... f4 {[%emt 0:00:00]} 50. gxf4+ {[%emt 0:00:00]} Kxf4 {[%emt 0:00:00]} 51. Bf2 {[%emt 0:00:00]} Kf5 $2 {[%emt 0:00:00]} (51... Bg2 52. c5 Kf5) 52. Nf1 {[%emt 0:00:00]} Be4+ {[%emt 0:00:00]} 53. Ke2 {[%emt 0:00:00]} Bf4 {[%emt 0:00:00] A strong pair of Bishops.} (53... Ke6 $142 {Threatens to win with ...Bc2.} 54. Kd2 Bg2) 54. Ng3+ {[%emt 0:00:00]} Ke5 {[%emt 0:00:00]} 55. Kd1 {[%emt 0:00:00] Repels Bc2+} (55. Nxe4 Kxe4 56. Bg1 g3 57. hxg3 Bxg3 58. Kd2 Bf4+ 59. Ke2 h2 60. Bxh2 Bxh2 61. Kd2 Kd4 62. c5 Bc7 63. c6 Bh2 64. Kc2 Ke3 65. Kc1 Kd3 66. Kd1 Kc3 67. Ke1 Kxb3 68. Kf1 Kc4 69. Kf2 b3 70. Kg2 Bc7 71. Kh3 b2 72. Kg4 b1=Q 73. Kg5 Qh7 74. Kg4 Qg6+ 75. Kf3 Kd3 76. Kf2 Qe4 77. Kg1 Qe2 78. Kh1 Qh2#) (55. Be1 {only move.}) 55... Bd3 {[%emt 0:00:00]} 56. c5 $2 {[%emt 0:00:00]} (56. Ba7 Bxg3 57. Bb8+ Kd4 58. Bxg3) 56... Kd5 {[%emt 0:00:00]} 57. Bg1 {[%emt 0:03:26]} Bg5 {[%emt 0:00:00]} 58. Bf2 {[%emt 0:01:37]} Kc6 {[%emt 0:00:00]} 59. Bg1 {[%emt 0:00:17]} Be7 {[%emt 0:00:00]} 60. Kd2 {[%emt 0:00:36]} Bg6 {[%emt 0:00:00]} (60... Bxc5 $2 61. Bxc5 Bh7 62. Bxb4 $18) 61. Be3 {[%emt 0:00:46]} Bxc5 {[%emt 0:00:00]} 62. Bxc5 {[%emt 0:01:21]} Kxc5 {[%emt 0:00:00] KB-KN} 63. Nh1 {[%emt 0:01:24]} Bf7 {[%emt 0:00:00][%cal Oc5d4] Strongly threatening ...Kd4!} 64. Nf2 {[%emt 0:00:47]} Be6 {[%emt 0:00:00]} 65. Kd3 {[%emt 0:00:29]} Kd5 {[%emt 0:00:00]} 66. Ke3 {[%emt 0:00:02] [#]} g3 $1 {[%emt 0:00:00][%mdl 512] Black mates.} 67. hxg3 {[%emt 0:00:12]} h2 {[%emt 0:00:00]} 68. Kd3 {[%emt 0:00:31]} Bf5+ {[%emt 0:00:00]} 69. Kd2 {[%emt 0:00:38]} Be4 {[%emt 0:00:00]} 70. g4 {[%emt 0:00:53]} h1=Q {[%emt 0:00:00]} 71. Nxh1 {[%emt 0:00:03]} Bxh1 {[%emt 0:00:00] KB-KPP} 72. g5 {[%emt 0:00:41]} Be4 {[%emt 0:00:00]} 73. Kc1 {[%emt 0:00:31]} Kd4 {[%emt 0:00:00]} 74. Kb2 {[%emt 0:01:02]} Bg6 {[%emt 0:00:00]} 75. Ka1 {[%emt 0:00:49]} Kd3 {[%emt 0:00:00]} 76. Kb1 {[%emt 0:00:20]} Kd2+ {[%emt 0:00:00]} 77. Kb2 {[%emt 0:00:29]} Bf7 {[%emt 0:00:00]} 78. Ka2 {[%emt 0:00:52]} Kc1 {[%emt 0:00:00]} 79. Ka1 {[%emt 0:00:44]} Kc2 {[%emt 0:00:04]} 80. Ka2 {[%emt 0:00:22]} Bxb3+ {[%emt 0:00:08]} 81. Ka1 {[%emt 0:00:09]} Bg8 {[%emt 0:00:11]} 82. g6 {[%emt 0:00:37]} b3 {[%emt 0:00:04] Weighted Error Value: White=0.61/Black=0.38} 0-1

[Event "1st FIDE Olympiad DIS 2023"]
[Site "Belgrade"]
[Date "2023.01.31"]
[Round "2.10"]
[White "Banda Aaron"]
[Black "Rivas Cabrera, Edgar"]
[Result "0-1"]
[ECO "A24"]
[WhiteElo "1901"]
[BlackElo "1987"]
[Annotator "TA"]
[PlyCount "116"]
[EventDate "2023.01.30"]
[EventType "team-tourn"]
[EventCountry "SRB"]
[SourceTitle "playchess.com"]
[Source "ChessBase"]
[SourceQuality "1"]
[WhiteTeam "Zambia"]
[BlackTeam "Venezuela"]
[WhiteTeamCountry "ZAM"]
[BlackTeamCountry "VEN"]
[TimeControl "40/5400+30:1800+30"]

{[%evp 16,116,3,9,12,7,19,-63,1,-40,-17,-56,-57,-41,-37,-111,-104,-93,-91,-104,-121,-97,-45,-45,-39,-61,-40,-43,-5,-35,-21,-19,-23,-124,232,246,238,-152,-158,-157,-153,-245,-240,-239,-229,-218,-155,-410,-396,-500,-212,-537,-549,-526,-545,-714,-700,-710,-693,-643,-426,-762,-756,-712,-738,-1129,-961,-894,-838,-870,-866,-829,-826,-1092,-1050,-1302,-1624,-5725,-3048,-29976,-29976,-29970,-12836,-29982,-29980,-29982,-29982,-29983,-29983,-29983,-29981,-29983,-29984,-29984,-29985,-29986,-29987,-29987,-29988,-29988,-29989,-29991,-29990]} 1. c4 {[%emt 0:00:04]} Nf6 {[%emt 0:00:09]} 2. Nc3 {[%emt 0:00:11]} g6 {[%emt 0:00:11]} 3. d3 {[%emt 0:00:12]} Bg7 {[%emt 0:00:19]} 4. Bd2 {[%emt 0:00:23]} e5 {[%emt 0:00:35]} 5. Rb1 {[%emt 0:00:28]} d6 {[%emt 0:00:26]} 6. g3 {[%emt 0:00:19]} c6 {[%emt 0:00:37]} 7. Bg2 {[%emt 0:00:12]} Nbd7 {[%emt 0:00:14]} 8. Nf3 {[%emt 0:00:13]} O-O {[%emt 0:00:07]} 9. O-O {[%emt 0:00:16]} Re8 {[%emt 0:04:01] A24: English Opening vs King's Indian: Lines without ...Nc6.} 10. b4 {[%emt 0:01:23]} d5 {[%emt 0:09:33] [#]} 11. e3 $146 {[%emt 0:07:37]} (11. b5 $11) ({Predecessor:} 11. cxd5 cxd5 12. Qb3 Nb6 13. a4 d4 14. Nd1 Be6 15. Qa3 Bd5 16. a5 Nc8 17. Nb2 {1-0 Hecko,D (2107)-Gazikova,V (2093) SVK-chT1W 1314 2013 (2.8)}) 11... b6 {[%emt 0:06:51]} (11... dxc4 $15 12. dxc4 Nb6) 12. Ne1 {[%emt 0:02:29][%cal Rc4d5]} Bb7 {[%emt 0:01:54]} 13. b5 {[%emt 0:04:40] Black must now prevent bxc6.} Nc5 {[%emt 0:02:48][%cal Bd7c5,Bc5e4,Be4c3][%mdl 32]} 14. bxc6 {[%emt 0:07:47]} Bxc6 {[%emt 0:02:12]} 15. d4 {[%emt 0:10:35]} ({White should play} 15. f4 $15 exf4 16. Rxf4) 15... exd4 $17 {[%emt 0:04:07]} 16. exd4 {[%emt 0:00:31]} Nce4 {[%emt 0:00:27]} 17. cxd5 {[%emt 0:13:33]} Nxc3 {[%emt 0:00:53]} (17... Bxd5 18. Nxd5 Nxd5 19. Bxe4 Rxe4 20. Nf3 $15) 18. Bxc3 {[%emt 0:02:03]} Nxd5 {[%emt 0:00:46]} ({Black should try} 18... Bxd5 $17 19. Bxd5 Qxd5) 19. Ba1 $15 {[%emt 0:03:42]} Rc8 {[%emt 0:02:49]} 20. Nf3 {[%emt 0:03:45]} Bd7 {[%emt 0:19:34]} 21. Rc1 {[%emt 0:04:41]} Be6 {[%emt 0:01:05]} 22. a3 {[%emt 0:01:37]} Bh6 {[%emt 0:04:17]} 23. Rxc8 {[%emt 0:00:39]} Qxc8 {[%emt 0:00:32]} 24. Nd2 {[%emt 0:02:01] [#]} (24. Qb3 $11) 24... Nc3 $2 {[%emt 0:00:51][%mdl 8192]} (24... Qa6 $1 $17 {stays on course.} 25. Bb2 Qb5) 25. Bxc3 $18 {[%emt 0:03:37][%mdl 64] Remove Defender} Qxc3 {[%emt 0:00:02]} 26. Nb1 {[%emt 0:00:46]} (26. Ne4 $18 Qb3 27. Nf6+ Kf8 28. Nxe8 (28. Nxh7+ $2 Kg7 $19) 28... Qxd1 29. Rxd1 Kxe8 30. Bc6+ Kd8 31. Kg2) 26... Qc4 $36 {[%emt 0:02:50][%mdl 2048] Black is really pushing. Black has more active pieces. The white rooks are badly placed.} 27. Re1 {[%emt 0:03:11]} Rd8 {[%emt 0:11:56]} 28. Re4 {[%emt 0:09:59]} (28. d5 $17 {was worth a try.}) 28... Bf5 $19 {[%emt 0:00:00]} 29. Bf1 {[%emt 0:01:24]} Qa2 {[%emt 0:02:01]} 30. Re1 {[%emt 0:02:49]} Bc2 {[%emt 0:01:52]} 31. Nc3 {[%emt 0:04:51]} (31. Qg4 $17 {only move.} Qd5 32. Nc3 Qxd4 33. Qxd4 Rxd4 34. Re7) 31... Qb3 {[%emt 0:03:35]} (31... Qxa3 32. Qxc2 Rc8 33. Nb5 $18) (31... Bxd1 32. Nxa2 Rxd4 33. Nc3 $17) 32. Qf3 {[%emt 0:01:55]} Bd2 {[%emt 0:05:05]} ({But not} 32... Rxd4 33. Qf6 Rd7 34. Re8+ Bf8 35. Bh3 Qxa3 36. Bxd7 $18) (32... Rc8 $142 33. Qb7 Qxc3) 33. Qf6 $2 {[%emt 0:03:26] [#]} (33. Re7 Bxc3 34. d5) 33... Rf8 $1 {[%emt 0:03:02]} 34. Re7 {[%emt 0:01:12]} Bxc3 {[%emt 0:00:44]} 35. Qc6 {[%emt 0:01:20]} Bxd4 {[%emt 0:05:03]} (35... Qxa3 $2 {loses.} 36. Re3 $19) 36. Bc4 {[%emt 0:01:12]} Qb1+ {[%emt 0:00:25]} 37. Kg2 {[%emt 0:00:27]} Bb3 {[%emt 0:00:22] And now ...Qc2 would win.} 38. Re8 {[%emt 0:01:34]} (38. Qb5 $142 Ba2 39. Qxb1 Bxb1 40. Rd7) 38... Bxc4 {[%emt 0:00:25]} 39. Rxf8+ {[%emt 0:00:05]} Kxf8 {[%emt 0:00:39]} 40. Qxc4 {[%emt 0:01:05]} Qe4+ {[%emt 0:00:54]} 41. Kf1 {[%emt 0:30:39]} Qh1+ {[%emt 0:31:36]} 42. Ke2 {[%emt 0:00:08]} Bc5 {[%emt 0:00:21]} 43. Qc3 {[%emt 0:00:20]} Qe4+ {[%emt 0:00:33]} 44. Kf1 {[%emt 0:00:20]} Qd4 {[%emt 0:00:20][%csl Gc5][%cal Rd4f2]} 45. Qf3 {[%emt 0:00:20]} a5 {[%emt 0:00:40]} 46. h3 {[%emt 0:01:20]} Qa1+ {[%emt 0:00:14]} 47. Kg2 {[%emt 0:00:06]} Qxa3 {[%emt 0:00:13]} 48. Qf6 {[%emt 0:00:29]} Kg8 {[%emt 0:00:55]} (48... Qa2 $142 49. Qh8+ Ke7 50. Qe5+ Kd7 51. Kh1 Qxf2 52. Qa1 Qxg3 53. Qf1 Qf2 54. Qc1 Bd6 55. Qg1 Qf3+ 56. Qg2 Qxg2+ 57. Kxg2 a4 58. Kg1 a3 59. h4 a2 60. Kf2 a1=Q 61. Ke3 Qc3+ 62. Ke2 Qc2+ 63. Ke3 Bc5+ 64. Kf4 Qf2+ 65. Kg5 Be3+ 66. Kg4 Qg2#) 49. h4 {[%emt 0:01:06]} Qb4 {[%emt 0:00:27] Black mates.} 50. h5 {[%emt 0:00:25]} Qd4 {[%emt 0:00:24]} ({Weaker is} 50... gxh5 51. Qg5+ Kh8 52. Qf6+ Kg8 53. Qg5+ Kh8 54. Qf6+ Kg8 $11) 51. Qf3 {[%emt 0:00:38]} gxh5 {[%emt 0:00:36][%cal Bg6h5,Bh5h4][%mdl 32]} 52. Qf5 {[%emt 0:00:51]} Qg4 {[%emt 0:00:51]} 53. Qf6 {[%emt 0:00:51]} a4 {[%emt 0:00:50][%cal Ba5a4,Ba4a3][%mdl 32]} 54. Qd8+ {[%emt 0:00:34]} Kg7 {[%emt 0:00:18]} 55. Qd3 {[%emt 0:00:22]} a3 {[%emt 0:00:48]} 56. Qc2 {[%emt 0:00:28]} h4 {[%emt 0:00:26]} 57. Qc3+ {[%emt 0:00:27]} Qd4 {[%emt 0:00:23]} 58. Qf3 {[%emt 0:00:13]} Qxf2+ {[%emt 0:00:07] Weighted Error Value: White=0.97/Black=0.49} 0-1

[Event "1st FIDE Olympiad DIS 2023"]
[Site "Belgrade"]
[Date "2023.01.31"]
[Round "2.10"]
[White "Zhukovskaya, Nina"]
[Black "Mekus, Manuela"]
[Result "0-1"]
[ECO "A24"]
[WhiteElo "1474"]
[BlackElo "1624"]
[Annotator "NA RC COMBH"]
[PlyCount "116"]
[EventDate "2023.01.30"]
[EventType "team-tourn"]
[EventCountry "SRB"]
[SourceTitle "playchess.com"]
[Source "ChessBase"]
[SourceQuality "1"]
[WhiteTeam "Kazakhstan"]
[BlackTeam "Germany"]
[WhiteTeamCountry "KAZ"]
[BlackTeamCountry "GER"]
[TimeControl "40/5400+30:1800+30"]

1. c4 {[%emt 0:00:04]} Nf6 {[%emt 0:00:09]} 2. Nc3 {[%emt 0:00:11]} g6 {[%emt 0:00:11]} 3. d3 {[%emt 0:00:12]} Bg7 {[%emt 0:00:19]} 4. Bd2 {[%emt 0:00:23]} e5 {[%emt 0:00:35]} 5. Rb1 {[%emt 0:00:28]} d6 {[%emt 0:00:26]} 6. g3 {[%emt 0:00:19]} c6 {[%emt 0:00:37]} 7. Bg2 {[%emt 0:00:12]} Nbd7 {[%emt 0:00:14]} 8. Nf3 {[%emt 0:00:13]} O-O {[%emt 0:00:07]} 9. O-O {[%emt 0:00:16]} Re8 {[%emt 0:04:01]} 10. b4 {[%emt 0:01:23]} d5 {[%emt 0:09:33]} 11. e3 {[%emt 0:07:37]} b6 {[%emt 0:06:51]} 12. Ne1 {[%emt 0:02:29]} Bb7 {[%emt 0:01:54]} 13. b5 {[%emt 0:04:40]} Nc5 {[%emt 0:02:48]} 14. bxc6 {[%emt 0:07:47]} Bxc6 {[%emt 0:02:12]} 15. d4 {[%emt 0:10:35]} exd4 {[%emt 0:04:07]} 16. exd4 {[%emt 0:00:31]} Nce4 {[%emt 0:00:27]} 17. cxd5 {[%emt 0:13:33]} Nxc3 {[%emt 0:00:53]} 18. Bxc3 {[%emt 0:02:03]} Nxd5 {[%emt 0:00:46]} 19. Ba1 {[%emt 0:03:42]} Rc8 {[%emt 0:02:49]} 20. Nf3 {[%emt 0:03:45]} Bd7 {[%emt 0:19:34]} 21. Rc1 {[%emt 0:04:41]} Be6 {[%emt 0:01:05]} 22. a3 {[%emt 0:01:37]} Bh6 {[%emt 0:04:17]} 23. Rxc8 {[%emt 0:00:39]} Qxc8 {[%emt 0:00:32]} 24. Nd2 {[%emt 0:02:01]} Nc3 {[%emt 0:00:51]} 25. Bxc3 {[%emt 0:03:37]} Qxc3 {[%emt 0:00:02]} 26. Nb1 {[%emt 0:00:46]} Qc4 {[%emt 0:02:50]} 27. Re1 {[%emt 0:03:11]} Rd8 {[%emt 0:11:56]} 28. Re4 {[%emt 0:09:59]} Bf5 {[%emt 0:00:00]} 29. Bf1 {[%emt 0:01:24]} Qa2 {[%emt 0:02:01]} 30. Re1 {[%emt 0:02:49]} Bc2 {[%emt 0:01:52]} 31. Nc3 {[%emt 0:04:51]} Qb3 {[%emt 0:03:35]} 32. Qf3 {[%emt 0:01:55]} Bd2 {[%emt 0:05:05]} 33. Qf6 {[%emt 0:03:26]} Rf8 {[%emt 0:03:02]} 34. Re7 {[%emt 0:01:12]} Bxc3 {[%emt 0:00:44]} 35. Qc6 {[%emt 0:01:20]} Bxd4 {[%emt 0:05:03]} 36. Bc4 {[%emt 0:01:12]} Qb1+ {[%emt 0:00:25]} 37. Kg2 {[%emt 0:00:27]} Bb3 {[%emt 0:00:22]} 38. Re8 {[%emt 0:01:34]} Bxc4 {[%emt 0:00:25]} 39. Rxf8+ {[%emt 0:00:05]} Kxf8 {[%emt 0:00:39]} 40. Qxc4 {[%emt 0:01:05]} Qe4+ {[%emt 0:00:54]} 41. Kf1 {[%emt 0:30:39]} Qh1+ {[%emt 0:31:36]} 42. Ke2 {[%emt 0:00:08]} Bc5 {[%emt 0:00:21]} 43. Qc3 {[%emt 0:00:20]} Qe4+ {[%emt 0:00:33]} 44. Kf1 {[%emt 0:00:20]} Qd4 {[%emt 0:00:20]} 45. Qf3 {[%emt 0:00:20]} a5 {[%emt 0:00:40]} 46. h3 {[%emt 0:01:20]} Qa1+ {[%emt 0:00:14]} 47. Kg2 {[%emt 0:00:06]} Qxa3 {[%emt 0:00:13]} 48. Qf6 {[%emt 0:00:29]} Kg8 {[%emt 0:00:55]} 49. h4 {[%emt 0:01:06]} Qb4 {[%emt 0:00:27]} 50. h5 {[%emt 0:00:25]} Qd4 {[%emt 0:00:24]} 51. Qf3 {[%emt 0:00:38]} gxh5 {[%emt 0:00:36]} 52. Qf5 {[%emt 0:00:51]} Qg4 {[%emt 0:00:51]} 53. Qf6 {[%emt 0:00:51]} a4 {[%emt 0:00:50]} 54. Qd8+ {[%emt 0:00:34]} Kg7 {[%emt 0:00:18]} 55. Qd3 {[%emt 0:00:22]} a3 {[%emt 0:00:48]} 56. Qc2 {[%emt 0:00:28]} h4 {[%emt 0:00:26]} 57. Qc3+ {[%emt 0:00:27]} Qd4 {[%emt 0:00:23]} 58. Qf3 {[%emt 0:00:13]} Qxf2+ {[%emt 0:00:07]} 0-1